[Event "WGM Marmaris Cleopatra 2018"]
[Site "Mentese Mugla"]
[Date "2018.10.27"]
[Round "3.9"]
[White "Okuyaz, Duru"]
[Black "Abdulla, Khayala"]
[Result "0-1"]
[ECO "B41"]
[WhiteElo "2108"]
[BlackElo "2168"]
[Annotator "NA"]
[PlyCount "106"]
[EventDate "2018.10.26"]
[EventType "tourn"]
[EventCountry "TUR"]
[SourceTitle "playchess.com"]
[Source "ChessBase"]
[SourceQuality "1"]
[TimeControl "5400+30"]

{[%evp 8,106,54,43,57,46,56,50,69,67,74,57,60,60,73,58,55,49,60,51,56,52,143,148,159,52,147,128,131,136,151,143,162,8,31,-33,-27,-18,-10,-24,0,-21,0,-131,-89,-86,-69,-83,-30,-64,0,0,272,307,293,0,0,-31,-31,-34,-32,-39,32767,32767,32767,32767,-9,-121,-124,-164,-185,-185,32767,32767,32767,-195,-225,-310,0,-204,0,-298,-293,-314,-290,-306,-292,-819,-500,-731,-731,-692,-582,-12837,-29955,-29996,-29991,-29993,-29994,-29995,-29996]} 1. e4 {[%emt 0:00:30]} c5 {[%emt 0:03:30]} 2. Nf3 {[%emt 0:00:00]} a6 {[%emt 0:00:30]} 3. c4 {[%emt 0:00:00]} d6 {[%emt 0:01:30]} 4. d4 {[%emt 0:01:30]} cxd4 {[%emt 0:00:30]} 5. Nxd4 {[%emt 0:00:00]} Nf6 {[%emt 0:03:30]} 6. Nc3 {[%emt 0:00:00]} e6 {[%emt 0:00:30]} 7. Be2 {[%emt 0:00:30]} Qc7 {[%emt 0:00:30]} 8. O-O {[%emt 0:00:30]} Be7 {[%emt 0:00:30] B41: Sicilian: Kan Variation: 5 c4} (8... b6 9. Be3 Bb7 10. f3 Be7 11. Qd2 O-O 12. Rfc1 Rc8 13. Kh1 Nbd7 14. a4 Rab8 15. b4 Qd8 16. Nb3 Ba8 17. a5 bxa5 18. Nxa5 Rxb4 19. Nb5 axb5 20. Qxb4 bxc4 21. Rxc4 {1-0 (99) Duda,J (2671)-Artemiev,V (2653) Martuni 2016}) 9. Be3 {[%emt 0:00:30]} b6 {[%emt 0:00:00]} 10. f4 {[%emt 0:01:30]} Bb7 {[%emt 0:03:00]} 11. Qd3 {[%emt 0:01:30]} Nbd7 {[%emt 0:00:30]} 12. b4 {[%emt 0:00:30]} O-O {[%emt 0:00:30]} 13. Rac1 {[%emt 0:03:30] LiveBook: 11 Games} Rac8 {[%emt 0:01:30]} 14. g4 {[%emt 0:06:30]} Rfd8 {[%emt 0:13:30]} (14... h6 $14) 15. g5 {[%emt 0:03:30]} Ne8 $146 {[%emt 0:00:30]} ({Predecessor:} 15... Nc5 16. bxc5 dxc5 17. gxf6 gxf6 {1-0 (27) Marrero Lopez,Y (2281)-Suasnabar,J (2003) Bogota 2015}) 16. Qd2 {[%emt 0:02:30]} (16. Bg4 $18) 16... Bf8 {[%emt 0:16:30]} (16... d5 $1 $11) 17. f5 {[%emt 0:05:30]} exf5 {[%emt 0:01:30]} 18. Nd5 {[%emt 0:01:30]} Qb8 {[%emt 0:03:30]} 19. Nxf5 {[%emt 0:06:30]} Bxd5 {[%emt 0:00:30]} 20. Qxd5 {[%emt 0:00:30]} (20. exd5 $16 Ne5 21. Nd4) 20... Ne5 {[%emt 0:02:30]} 21. Bf4 {[%emt 0:04:30]} Nc7 {[%emt 0:01:30]} 22. Qd2 {[%emt 0:01:30]} Ne6 {[%emt 0:00:30]} 23. Bg3 {[%emt 0:00:30]} b5 {[%emt 0:07:30]} 24. c5 {[%emt 0:12:30]} Qa7 {[%emt 0:06:30]} (24... dxc5 $5 25. Qb2 $8 Nd4 26. Nxd4 Rxd4 $15) 25. Qb2 {[%emt 0:12:30]} (25. Qe3 $1 $11 {remains equal.}) 25... Nc6 {[%emt 0:05:30]} 26. Bf2 {[%emt 0:02:30]} (26. Bh5 $11 g6 27. Bxd6 Rxd6 28. Nxd6 Bxd6 29. Bg4) 26... dxc5 {[%emt 0:00:30]} 27. bxc5 {[%emt 0:01:30]} Nxg5 {[%emt 0:02:30]} 28. Be3 {[%emt 0:02:30]} Nxe4 {[%emt 0:04:47]} (28... Ne6 $17 29. Bg4 Qc7) 29. Bf3 {[%emt 0:01:30]} Re8 $2 {[%emt 0:00:19]} (29... Nf6 $1 $11 {and Black is okay.}) 30. Qg2 {[%emt 0:00:30]} Nf6 {[%emt 0:07:07] [#]} 31. Bxc6 $2 {[%emt 0:01:30]} (31. Bh6 $1 $18 {[%cal Rh6g7]} Bxc5+ 32. Kh1) 31... Rxe3 $1 {[%emt 0:00:32]} 32. Nxe3 {[%emt 0:01:30]} Bxc5 {[%emt 0:00:03]} 33. Kh1 {[%emt 0:07:58]} Bxe3 {[%emt 0:00:15]} 34. Rcd1 {[%emt 0:03:02]} Bd4 {[%emt 0:02:56]} 35. Rf4 {[%emt 0:01:31]} Be5 {[%emt 0:00:53]} 36. Rf5 {[%emt 0:03:36]} Qe3 {[%emt 0:00:41]} (36... Qb6 $15) 37. Rf3 {[%emt 0:02:47] [#]} (37. Qf3 $11 {keeps the balance.} Qc5 38. Bb7) 37... Qb6 $1 {[%emt 0:01:35]} 38. Rfd3 {[%emt 0:00:24]} g6 {[%emt 0:00:24]} 39. Bf3 {[%emt 0:01:25]} Rc4 {[%emt 0:00:56]} 40. Qe2 {[%emt 0:00:54]} Qc7 {[%emt 0:02:50]} 41. Re1 $1 {[%emt 0:03:50]} Bd6 $2 {[%emt 0:00:46]} ({Better is} 41... Rc5 $19 42. Qg2 Kg7) 42. Red1 $1 {[%emt 0:00:08]} Be5 {[%emt 0:00:54]} 43. Re1 {[%emt 0:00:15]} Bd6 {[%emt 0:01:18]} 44. Red1 {[%emt 0:00:07]} Bf4 {[%emt 0:00:28]} 45. Qb2 {[%emt 0:02:38]} Kg7 {[%emt 0:01:20]} 46. Rd7 {[%emt 0:00:23]} Rc2 {[%emt 0:00:51]} 47. Qd4 $2 {[%emt 0:01:32]} (47. Rxc7 Rxb2 48. Rb7) 47... Qxd7 {[%emt 0:02:01]} 48. Qxf4 {[%emt 0:00:19]} (48. Qxd7 $142 Nxd7 49. Rxd7) 48... Qh3 {[%emt 0:00:44]} 49. Bb7 {[%emt 0:01:06]} Qg4 {[%emt 0:01:16]} 50. Qd6 {[%emt 0:01:52]} Qe2 {[%emt 0:00:44]} 51. Ba8 {[%emt 0:00:30]} Ng4 {[%emt 0:00:25]} 52. Qd4+ {[%emt 0:00:05]} f6 {[%emt 0:00:11]} 53. Qd7+ {[%emt 0:01:24]} Kh6 {[%emt 0:00:04]} 0-1

[Event "WGM Marmaris Cleopatra 2018"]
[Site "Mentese Mugla"]
[Date "2018.10.27"]
[Round "4.6"]
[White "Dimitrijevic, Aleksandra"]
[Black "Ince, Safiye Oyku"]
[Result "1-0"]
[ECO "B40"]
[WhiteElo "2189"]
[BlackElo "1855"]
[Annotator "NA"]
[PlyCount "53"]
[EventDate "2018.10.26"]
[EventType "tourn"]
[EventCountry "TUR"]
[SourceTitle "playchess.com"]
[Source "ChessBase"]
[SourceQuality "1"]
[TimeControl "5400+30"]

1. e4 {[%emt 0:00:30]} c5 {[%emt 0:00:30]} 2. Nf3 {[%emt 0:00:00]} e6 {[%emt 0:00:00]} 3. b3 {[%emt 0:00:00]} Nc6 {[%emt 0:01:00]} 4. Bb2 {[%emt 0:00:30]} d5 {[%emt 0:00:30]} 5. exd5 {[%emt 0:00:30]} exd5 {[%emt 0:00:00]} 6. Bb5 {[%emt 0:00:00]} Nf6 {[%emt 0:05:00]} 7. O-O {[%emt 0:01:00]} Be7 {[%emt 0:01:30]} 8. d4 {[%emt 0:02:30]} O-O {[%emt 0:02:30]} 9. dxc5 {[%emt 0:06:30]} Bxc5 {[%emt 0:00:30]} 10. Nc3 {[%emt 0:00:30]} Bg4 {[%emt 0:06:30]} 11. h3 {[%emt 0:07:30]} Bh5 {[%emt 0:03:30]} 12. Be2 {[%emt 0:04:30]} Re8 {[%emt 0:00:30]} 13. a3 {[%emt 0:02:30]} a6 {[%emt 0:11:30]} 14. b4 {[%emt 0:09:30]} Bf8 {[%emt 0:02:30]} 15. Nd4 {[%emt 0:12:30]} Bxe2 {[%emt 0:08:30]} 16. Ncxe2 {[%emt 0:00:30]} Ne5 {[%emt 0:00:30]} 17. Nf5 {[%emt 0:02:30]} Rc8 {[%emt 0:01:30]} 18. Bd4 {[%emt 0:02:30]} Ne4 {[%emt 0:03:30]} 19. Nfg3 {[%emt 0:10:30]} Qc7 {[%emt 0:03:30]} 20. c3 {[%emt 0:04:30]} Nc4 {[%emt 0:09:30]} 21. Re1 {[%emt 0:01:30]} Bd6 {[%emt 0:02:30]} 22. Qd3 {[%emt 0:09:30]} Re6 {[%emt 0:03:30]} 23. Nf1 {[%emt 0:04:10]} Rce8 {[%emt 0:14:01]} 24. f3 {[%emt 0:01:46]} Ng3 {[%emt 0:02:11]} 25. Nfxg3 {[%emt 0:03:09]} Bxg3 {[%emt 0:01:40]} 26. Bf2 {[%emt 0:01:36]} Ne3 {[%emt 0:03:33]} 27. Nxg3 {[%emt 0:00:22]} 1-0

[Event "WGM Marmaris Cleopatra 2018"]
[Site "Mentese Mugla"]
[Date "2018.10.27"]
[Round "4.7"]
[White "Zozulia, Anna"]
[Black "Soyunlu, Narmin"]
[Result "0-1"]
[ECO "C95"]
[WhiteElo "2292"]
[BlackElo "2014"]
[Annotator "NA"]
[PlyCount "155"]
[EventDate "2018.10.26"]
[EventType "tourn"]
[EventCountry "TUR"]
[SourceTitle "playchess.com"]
[Source "ChessBase"]
[SourceQuality "1"]
[TimeControl "5400+30"]

1. e4 {[%emt 0:00:30]} e5 {[%emt 0:00:30]} 2. Nf3 {[%emt 0:00:30]} Nc6 {[%emt 0:00:00]} 3. Bb5 {[%emt 0:00:30]} a6 {[%emt 0:00:00]} 4. Ba4 {[%emt 0:00:30]} Nf6 {[%emt 0:00:30]} 5. O-O {[%emt 0:00:00]} Be7 {[%emt 0:00:00]} 6. Re1 {[%emt 0:00:00]} b5 {[%emt 0:00:00]} 7. Bb3 {[%emt 0:00:30]} d6 {[%emt 0:00:30]} 8. c3 {[%emt 0:00:30]} O-O {[%emt 0:00:30]} 9. h3 {[%emt 0:03:30]} Nb8 {[%emt 0:03:30]} 10. d4 {[%emt 0:04:30]} Nbd7 {[%emt 0:00:30]} 11. Nbd2 {[%emt 0:02:30]} Bb7 {[%emt 0:04:30]} 12. Bc2 {[%emt 0:03:30]} Re8 {[%emt 0:01:30]} 13. Nf1 {[%emt 0:01:30]} Bf8 {[%emt 0:02:30]} 14. Ng3 {[%emt 0:00:00]} g6 {[%emt 0:02:30]} 15. Bd2 {[%emt 0:03:00]} c5 {[%emt 0:08:30]} 16. d5 {[%emt 0:02:30]} Nb6 {[%emt 0:02:30]} 17. Qc1 {[%emt 0:06:30]} h5 {[%emt 0:10:30]} 18. Bg5 {[%emt 0:05:30]} Be7 {[%emt 0:01:30]} 19. Bh6 {[%emt 0:03:30]} Nh7 {[%emt 0:05:30]} 20. Nf1 {[%emt 0:17:30]} Bc8 {[%emt 0:07:30]} 21. N3h2 {[%emt 0:02:30]} Bg5 {[%emt 0:04:30]} 22. Bxg5 {[%emt 0:00:30]} Qxg5 {[%emt 0:00:30]} 23. Qxg5 {[%emt 0:10:30]} Nxg5 {[%emt 0:00:00]} 24. h4 {[%emt 0:03:30]} Nh7 {[%emt 0:00:00]} 25. Ne3 {[%emt 0:00:30]} Bd7 {[%emt 0:04:30]} 26. f3 {[%emt 0:03:30]} Nc4 {[%emt 0:11:30]} 27. Nxc4 {[%emt 0:02:30]} bxc4 {[%emt 0:02:30]} 28. Nf1 {[%emt 0:00:30]} Reb8 {[%emt 0:01:30]} 29. Reb1 {[%emt 0:05:40]} a5 {[%emt 0:02:30]} 30. Ne3 {[%emt 0:01:43]} Bb5 {[%emt 0:00:00]} 31. Bd1 {[%emt 0:03:05]} Nf6 {[%emt 0:00:00]} 32. Be2 {[%emt 0:00:42]} a4 {[%emt 0:04:30]} 33. Bxc4 {[%emt 0:04:00]} Kf8 {[%emt 0:05:27]} 34. b4 {[%emt 0:02:47]} axb3 {[%emt 0:01:35]} 35. axb3 {[%emt 0:00:03]} Rxa1 {[%emt 0:01:58]} 36. Rxa1 {[%emt 0:00:04]} Nd7 {[%emt 0:02:56]} 37. Ra3 {[%emt 0:04:20]} Ke7 {[%emt 0:01:00]} 38. Kf2 {[%emt 0:00:08]} Bxc4 {[%emt 0:06:01]} 39. Nxc4 {[%emt 0:00:04]} f5 {[%emt 0:00:51]} 40. Ke3 {[%emt 0:00:04]} fxe4 {[%emt 0:01:05]} 41. fxe4 {[%emt 0:00:03]} Nf6 {[%emt 0:01:37]} 42. Ra7+ {[%emt 0:02:32]} Nd7 {[%emt 0:00:01]} 43. Na5 {[%emt 0:02:53]} Rb5 {[%emt 0:01:45]} 44. Kd3 {[%emt 0:01:16]} Ke8 {[%emt 0:01:17]} 45. Kc4 {[%emt 0:01:02]} Rb8 {[%emt 0:00:54]} 46. Nc6 {[%emt 0:00:28]} Rb6 {[%emt 0:00:56]} 47. b4 {[%emt 0:00:46]} cxb4 {[%emt 0:00:18]} 48. cxb4 {[%emt 0:00:06]} Nf6 {[%emt 0:00:33]} 49. Kd3 {[%emt 0:00:41]} Kf8 {[%emt 0:00:41]} 50. Ra8+ {[%emt 0:00:50]} Kf7 {[%emt 0:00:22]} 51. Ra7+ {[%emt 0:00:36]} Kf8 {[%emt 0:00:07]} 52. Ra4 {[%emt 0:00:10]} Kf7 {[%emt 0:01:01]} 53. Na5 {[%emt 0:00:09]} Ke7 {[%emt 0:00:32]} 54. Nc6+ {[%emt 0:01:01]} Kf7 {[%emt 0:00:02]} 55. Nd8+ {[%emt 0:00:27]} Ke7 {[%emt 0:00:22]} 56. Ne6 {[%emt 0:00:07]} Rb7 {[%emt 0:00:17]} 57. Ng5 {[%emt 0:00:27]} Ng4 {[%emt 0:00:57]} 58. Kc3 {[%emt 0:00:55]} Rc7+ {[%emt 0:00:33]} 59. Kb3 {[%emt 0:00:11]} Ne3 {[%emt 0:00:39]} 60. Ra2 {[%emt 0:00:13]} Ng4 {[%emt 0:00:35]} 61. b5 {[%emt 0:00:15]} Kd7 {[%emt 0:00:34]} 62. Kb4 {[%emt 0:00:46]} Ne3 {[%emt 0:00:31]} 63. Kb3 {[%emt 0:01:17]} Rb7 {[%emt 0:00:24]} 64. Re2 {[%emt 0:00:26]} Rxb5+ {[%emt 0:00:28]} 65. Ka4 {[%emt 0:00:06]} Nd1 {[%emt 0:00:26]} 66. Kxb5 {[%emt 0:00:38]} Nc3+ {[%emt 0:00:01]} 67. Kc4 {[%emt 0:00:41]} Nxe2 {[%emt 0:00:02]} 68. Ne6 {[%emt 0:00:33]} Ke7 {[%emt 0:01:08]} 69. Kd3 {[%emt 0:00:43]} Nf4+ {[%emt 0:01:00]} 70. Nxf4 {[%emt 0:00:07]} exf4 {[%emt 0:00:01]} 71. Ke2 {[%emt 0:00:05]} Kf6 {[%emt 0:00:10]} 72. Kf2 {[%emt 0:00:07]} g5 {[%emt 0:00:53]} 73. Kf3 {[%emt 0:00:53]} Kg6 {[%emt 0:00:19]} 74. e5 {[%emt 0:01:09]} dxe5 {[%emt 0:00:18]} 75. Ke4 {[%emt 0:00:40]} g4 {[%emt 0:01:16]} 76. Kxe5 {[%emt 0:00:11]} f3 {[%emt 0:00:04]} 77. d6 {[%emt 0:00:39]} Kf7 {[%emt 0:00:01]} 78. Kd4 {[%emt 0:00:55]} 0-1

[Event "WGM Marmaris Cleopatra 2018"]
[Site "Mentese Mugla"]
[Date "2018.10.27"]
[Round "4.8"]
[White "Tsatsalashvili, Keti"]
[Black "Arda, Cagil Irmak"]
[Result "1-0"]
[ECO "E52"]
[WhiteElo "2330"]
[BlackElo "2096"]
[Annotator "NA"]
[PlyCount "69"]
[EventDate "2018.10.26"]
[EventType "tourn"]
[EventCountry "TUR"]
[SourceTitle "playchess.com"]
[Source "ChessBase"]
[SourceQuality "1"]
[TimeControl "5400+30"]

1. d4 {[%emt 0:00:30]} Nf6 {[%emt 0:00:30]} 2. c4 {[%emt 0:00:30]} e6 {[%emt 0:00:00]} 3. Nc3 {[%emt 0:00:30]} Bb4 {[%emt 0:00:00]} 4. e3 {[%emt 0:00:30]} O-O {[%emt 0:00:30]} 5. Bd3 {[%emt 0:00:30]} d5 {[%emt 0:00:30]} 6. Nf3 {[%emt 0:00:30]} b6 {[%emt 0:02:30]} 7. O-O {[%emt 0:01:30]} Bb7 {[%emt 0:01:30]} 8. cxd5 {[%emt 0:00:30]} exd5 {[%emt 0:00:30]} 9. Qc2 {[%emt 0:02:30]} a6 {[%emt 0:03:30]} 10. Ne5 {[%emt 0:01:30]} Bd6 {[%emt 0:02:30]} 11. f4 {[%emt 0:02:30]} c5 {[%emt 0:03:30]} 12. Rf3 {[%emt 0:09:30]} cxd4 {[%emt 0:11:30]} 13. exd4 {[%emt 0:00:30]} Nc6 {[%emt 0:00:30]} 14. Nxc6 {[%emt 0:06:30]} Bxc6 {[%emt 0:00:30]} 15. Rh3 {[%emt 0:00:30]} h6 {[%emt 0:03:30]} 16. Bd2 {[%emt 0:02:30]} Re8 {[%emt 0:06:30]} 17. Rf1 {[%emt 0:02:30]} Bb7 {[%emt 0:03:30]} 18. f5 {[%emt 0:03:30]} Ne4 {[%emt 0:04:30]} 19. Bxe4 {[%emt 0:03:30]} dxe4 {[%emt 0:00:30]} 20. f6 {[%emt 0:00:30]} Bf8 {[%emt 0:01:30]} 21. Be3 {[%emt 0:02:30]} Re6 {[%emt 0:08:30]} 22. fxg7 {[%emt 0:04:30]} Bxg7 {[%emt 0:00:30]} 23. Rg3 {[%emt 0:00:30]} Rc8 {[%emt 0:05:30]} 24. Qf2 {[%emt 0:01:30]} Qe7 {[%emt 0:03:30]} 25. d5 {[%emt 0:07:30]} Rg6 {[%emt 0:01:30]} 26. Bxb6 {[%emt 0:01:30]} Bxc3 {[%emt 0:04:30]} 27. d6 {[%emt 0:06:30]} e3 {[%emt 0:05:30]} 28. Bxe3 {[%emt 0:08:30]} Be1 {[%emt 0:06:30]} 29. Rxg6+ {[%emt 0:02:30]} fxg6 {[%emt 0:00:00]} 30. dxe7 {[%emt 0:00:30]} Bxf2+ {[%emt 0:00:00]} 31. Rxf2 {[%emt 0:00:00]} Re8 {[%emt 0:00:30]} 32. Bc5 {[%emt 0:00:00]} Kg7 {[%emt 0:01:30]} 33. Rf8 {[%emt 0:00:30]} Bc6 {[%emt 0:00:00]} 34. Bd4+ {[%emt 0:00:30]} Kh7 {[%emt 0:00:00]} 35. Rf7+ {[%emt 0:00:00]} 1-0

[Event "WGM Marmaris Cleopatra 2018"]
[Site "Mentese Mugla"]
[Date "2018.10.27"]
[Round "4.9"]
[White "Tereladze, Sopiko"]
[Black "Okuyaz, Duru"]
[Result "1-0"]
[ECO "D04"]
[WhiteElo "2161"]
[BlackElo "2108"]
[Annotator "NA"]
[PlyCount "65"]
[EventDate "2018.10.26"]
[EventType "tourn"]
[EventCountry "TUR"]
[SourceTitle "playchess.com"]
[Source "ChessBase"]
[SourceQuality "1"]
[TimeControl "5400+30"]

1. Nf3 {[%emt 0:05:30]} d5 {[%emt 0:00:30]} 2. d4 {[%emt 0:00:30]} Nf6 {[%emt 0:00:00]} 3. e3 {[%emt 0:00:30]} c5 {[%emt 0:00:00]} 4. b3 {[%emt 0:00:30]} Nc6 {[%emt 0:00:30]} 5. Bb2 {[%emt 0:00:30]} Bg4 {[%emt 0:00:00]} 6. Be2 {[%emt 0:00:30]} e6 {[%emt 0:00:00]} 7. O-O {[%emt 0:00:30]} Bd6 {[%emt 0:00:30]} 8. h3 {[%emt 0:03:30]} Bh5 {[%emt 0:00:30]} 9. c4 {[%emt 0:00:30]} dxc4 {[%emt 0:04:30]} 10. bxc4 {[%emt 0:00:30]} cxd4 {[%emt 0:02:30]} 11. exd4 {[%emt 0:00:30]} O-O $11 {[%emt 0:00:30]} 12. Nbd2 {[%emt 0:01:30]} Rc8 {[%emt 0:01:30]} 13. Rc1 {[%emt 0:04:30]} Bf4 {[%emt 0:02:30]} 14. Ra1 {[%emt 0:10:30]} Na5 {[%emt 0:04:30]} 15. g3 {[%emt 0:03:30]} Bd6 {[%emt 0:02:30]} 16. Rc1 {[%emt 0:03:30]} Bb4 {[%emt 0:01:30]} 17. Ne5 {[%emt 0:18:30]} Bxe2 {[%emt 0:01:30]} 18. Qxe2 {[%emt 0:00:00]} Nd7 {[%emt 0:04:30]} 19. Ndf3 {[%emt 0:02:00]} Bd6 {[%emt 0:01:30]} 20. Rfd1 {[%emt 0:01:30]} Nf6 {[%emt 0:08:30]} 21. g4 {[%emt 0:07:30]} Qc7 {[%emt 0:03:30]} 22. g5 {[%emt 0:05:30]} Nd7 {[%emt 0:00:30]} 23. Nxd7 {[%emt 0:00:30]} Qxd7 {[%emt 0:00:30]} 24. d5 {[%emt 0:01:30]} e5 {[%emt 0:04:30]} 25. c5 {[%emt 0:01:30]} Bxc5 {[%emt 0:01:30]} 26. Qxe5 {[%emt 0:06:30]} f6 {[%emt 0:00:30]} 27. Qe6+ {[%emt 0:00:30]} Qxe6 {[%emt 0:00:00]} 28. dxe6 {[%emt 0:01:30]} fxg5 {[%emt 0:00:00]} 29. Rd7 {[%emt 0:05:39]} Rxf3 {[%emt 0:00:30]} 30. Rxc5 {[%emt 0:00:20]} Rxc5 {[%emt 0:02:30]} 31. Rd8+ {[%emt 0:00:52]} Rf8 {[%emt 0:00:30]} 32. e7 {[%emt 0:01:13]} Rcf5 {[%emt 0:01:30]} 33. Ba3 {[%emt 0:00:34]} 1-0

[Event "WGM Marmaris Cleopatra 2018"]
[Site "Mentese Mugla"]
[Date "2018.10.29"]
[Round "7.8"]
[White "Arda, Cagil Irmak"]
[Black "Abdulla, Khayala"]
[Result "1/2-1/2"]
[ECO "A31"]
[WhiteElo "2096"]
[BlackElo "2168"]
[Annotator "RC"]
[PlyCount "90"]
[EventDate "2018.10.26"]
[EventType "tourn"]
[EventCountry "TUR"]
[SourceTitle "playchess.com"]
[Source "ChessBase"]
[SourceQuality "1"]
[TimeControl "5400+30"]

1. e4 {[%emt 0:01:30]} c5 {[%emt 0:00:30]} 2. Nf3 {[%emt 0:00:00]} e6 {[%emt 0:00:30]} 3. d4 {[%emt 0:00:00]} cxd4 {[%emt 0:00:30]} 4. Nxd4 {[%emt 0:00:00]} a6 {[%emt 0:00:00]} 5. c4 {[%emt 0:00:00]} Nf6 {[%emt 0:00:00]} 6. Nc3 {[%emt 0:00:30]} Qc7 {[%emt 0:00:30]} 7. a3 {[%emt 0:00:30]} b6 {[%emt 0:00:30]} 8. Be3 {[%emt 0:00:30]} Bb7 {[%emt 0:00:00]} 9. f3 {[%emt 0:00:30]} d6 {[%emt 0:00:00]} 10. Be2 {[%emt 0:00:00]} Be7 {[%emt 0:00:30]} 11. O-O {[%emt 0:00:00]} Nbd7 {[%emt 0:00:00]} 12. Qd2 {[%emt 0:00:30]} Rc8 {[%emt 0:00:00]} 13. Rac1 {[%emt 0:00:30]} Qb8 {[%emt 0:00:30]} 14. b4 {[%emt 0:00:30]} O-O {[%emt 0:01:30]} 15. Rfd1 {[%emt 0:00:30]} Rfe8 {[%emt 0:00:30]} 16. Nb3 {[%emt 0:00:30]} Bf8 {[%emt 0:04:30]} 17. Na4 {[%emt 0:10:30]} Bc6 {[%emt 0:05:30]} 18. Nb2 {[%emt 0:06:30]} Bb7 {[%emt 0:02:30]} 19. Bf4 {[%emt 0:02:30]} Ne5 {[%emt 0:07:30]} 20. Qe3 {[%emt 0:04:30]} Ned7 {[%emt 0:21:30]} 21. Qf2 {[%emt 0:04:30]} Be7 {[%emt 0:02:30]} 22. Na4 {[%emt 0:04:30]} Bc6 {[%emt 0:04:30]} 23. Nb2 {[%emt 0:02:30]} Nh5 {[%emt 0:03:30]} 24. Be3 {[%emt 0:01:30]} Nhf6 {[%emt 0:00:30]} 25. g4 {[%emt 0:04:30]} h6 {[%emt 0:02:30]} 26. Bf4 {[%emt 0:03:30]} Nf8 {[%emt 0:03:30]} 27. c5 {[%emt 0:06:30]} e5 {[%emt 0:12:30]} 28. cxd6 {[%emt 0:01:30]} Bxd6 {[%emt 0:02:30]} 29. Be3 {[%emt 0:00:30]} Bb5 {[%emt 0:06:01]} 30. Bxb5 {[%emt 0:03:30]} axb5 {[%emt 0:00:01]} 31. Bxb6 {[%emt 0:00:30]} Rxc1 {[%emt 0:00:32]} 32. Rxc1 {[%emt 0:03:30]} Ne6 {[%emt 0:00:26]} 33. Nd3 {[%emt 0:02:30]} Qa8 {[%emt 0:00:54]} 34. Na5 {[%emt 0:01:30]} Nd7 {[%emt 0:06:45]} 35. Be3 {[%emt 0:02:30]} Bc7 {[%emt 0:00:36]} 36. Nb3 {[%emt 0:04:30]} Qxa3 {[%emt 0:02:13]} 37. Qc2 {[%emt 0:00:30]} Qa6 {[%emt 0:01:53]} 38. Ndc5 {[%emt 0:04:30]} Ndxc5 {[%emt 0:00:58]} 39. Nxc5 {[%emt 0:00:00]} Nxc5 {[%emt 0:01:41]} 40. Qxc5 {[%emt 0:02:00]} Bd6 {[%emt 0:01:33]} 41. Qa7 {[%emt 0:03:30]} Qxa7 {[%emt 0:01:32]} 42. Bxa7 {[%emt 0:00:00]} Bxb4 {[%emt 0:00:08]} 43. Rb1 {[%emt 0:00:00]} Ra8 {[%emt 0:01:28]} 44. Rxb4 {[%emt 0:00:00]} Rxa7 {[%emt 0:00:08]} 45. Rxb5 {[%emt 0:00:00]} f6 {[%emt 0:00:00]} 1/2-1/2

[Event "WGM Marmaris Cleopatra 2018"]
[Site "Mentese Mugla"]
[Date "2018.10.29"]
[Round "8.6"]
[White "Zozulia, Anna"]
[Black "Ince, Safiye Oyku"]
[Result "1-0"]
[ECO "B40"]
[WhiteElo "2292"]
[BlackElo "1855"]
[Annotator "NA"]
[PlyCount "71"]
[EventDate "2018.10.26"]
[EventType "tourn"]
[EventCountry "TUR"]
[SourceTitle "playchess.com"]
[Source "ChessBase"]
[SourceQuality "1"]
[TimeControl "5400+30"]

1. e4 {[%emt 0:00:30]} c5 {[%emt 0:00:30]} 2. Nf3 {[%emt 0:00:00]} e6 {[%emt 0:00:00]} 3. b3 {[%emt 0:00:00]} d5 {[%emt 0:00:00]} 4. exd5 {[%emt 0:00:30]} exd5 {[%emt 0:00:30]} 5. d4 {[%emt 0:05:30]} Nf6 {[%emt 0:00:30]} 6. Bb5+ {[%emt 0:03:30]} Nc6 {[%emt 0:05:30]} 7. O-O {[%emt 0:01:30] LiveBook: 6 Partien} Be7 {[%emt 0:00:30]} 8. dxc5 {[%emt 0:01:30]} O-O {[%emt 0:10:30]} 9. Bxc6 {[%emt 0:14:30]} bxc6 {[%emt 0:00:00]} 10. Be3 {[%emt 0:02:30]} Bg4 {[%emt 0:11:00]} 11. Nbd2 {[%emt 0:15:30]} a5 {[%emt 0:20:30]} 12. c4 {[%emt 0:07:30]} dxc4 $14 {[%emt 0:06:30]} 13. Nxc4 {[%emt 0:00:30]} Nd5 {[%emt 0:00:30]} 14. Rc1 {[%emt 0:12:30]} Nxe3 {[%emt 0:15:30]} 15. Nxe3 {[%emt 0:00:30]} Qxd1 {[%emt 0:00:30]} 16. Rfxd1 {[%emt 0:00:30]} Bxf3 {[%emt 0:00:00]} 17. gxf3 {[%emt 0:00:00]} Rfd8 {[%emt 0:00:00]} 18. Rxd8+ {[%emt 0:07:00]} Rxd8 {[%emt 0:00:30]} 19. Nc4 {[%emt 0:00:00]} Ra8 {[%emt 0:04:30]} 20. Ne5 {[%emt 0:06:00]} Ra6 {[%emt 0:00:30]} 21. Rd1 {[%emt 0:10:48]} f6 {[%emt 0:06:32]} 22. Rd7 {[%emt 0:00:37]} Kf8 {[%emt 0:00:58]} 23. Nd3 {[%emt 0:00:07]} f5 {[%emt 0:03:58]} 24. Kf1 {[%emt 0:00:24]} Bf6 {[%emt 0:00:24]} 25. Ke2 {[%emt 0:01:08]} Ke8 {[%emt 0:00:38]} 26. Rb7 {[%emt 0:03:18]} Kd8 {[%emt 0:04:34]} 27. Ke3 {[%emt 0:00:23]} h6 {[%emt 0:03:33]} 28. Kf4 {[%emt 0:03:47]} g6 {[%emt 0:00:03]} 29. Rf7 {[%emt 0:01:04]} Be7 {[%emt 0:00:18]} 30. Ke5 {[%emt 0:00:19]} Ra7 {[%emt 0:00:07]} 31. Ke6 {[%emt 0:00:41]} Ke8 {[%emt 0:00:13]} 32. Ne5 {[%emt 0:00:47]} Bxc5 {[%emt 0:00:18]} 33. Rxa7 {[%emt 0:00:06]} Bxa7 {[%emt 0:00:04]} 34. Nxc6 {[%emt 0:00:29]} Bxf2 {[%emt 0:00:06]} 35. Nxa5 {[%emt 0:00:10]} Bg1 {[%emt 0:00:04]} 36. h3 {[%emt 0:00:00]} 1-0